Cogmind - Beta 16 @@@ ROGUE MODE // 2025.12.02 @ 01:54:53 Player: Vriska Result: Destroyed by as-54461 with Assembled Maul Performance ------------- Evolutions (0) 0 Regions Visited (4) 800 Robots Destroyed (16) 80 Value Destroyed (450) 450 Prototype IDs (23) 460 Alien Tech Used (0) 0 Bonus (300) 300 TOTAL SCORE: 2090 Bonus ------- Aligned with FarCom 300 Cogmind --------- Core Integrity 0/250 Matter 270/300 Energy 56/250 System Corruption 8% Temperature Cool (0) Movement Walking (190) Ox1 Location -9/Mines Parts ------- > --- POWER (1) -------- Ion Engine > --- PROPULSION (2) --- Aluminum Leg > --- UTILITY (2) ------ Small Storage Unit > --- WEAPON (2) ------- Latent Energy Streamer > --- INVENTORY (8) ---- Ion Engine Structural Scanner Experimental Sensor Array Hacking Suite Peak State ------------ > --- POWER ------------ Ion Engine > --- PROPULSION ------- Aluminum Leg Aluminum Leg > --- UTILITY ---------- Small Storage Unit Light Armor Plating > --- WEAPON ----------- Latent Energy Streamer Light Assault Rifle > --- INVENTORY -------- Ion Engine Aluminum Leg Structural Scanner Visual Processing Unit Experimental Sensor Array Light Armor Plating Hacking Suite [Rating: 17] Favorites ----------- Power Ion Engine Engine Ion Engine Propulsion Aluminum Leg Leg Aluminum Leg Utility Small Storage Unit Storage Small Storage Unit Protection Light Armor Plating Weapon Light Assault Rifle Energy Cannon Latent Energy Streamer Ballistic Gun Light Assault Rifle Build | -11 -10 -10 -10 -9 ------- Run | Yrd Mat Min Exi Min Slots Evolved . | . . . . . Power . | . . . . . Propulsion . | . . . . . Utility . | . . . . . Weapon . | . . . . . Parts Attached 19 | 6 7 4 2 . Power 4 | 1 1 1 1 . Engine 4 | 1 1 1 1 . Core . | . . . . . Reactor . | . . . . . Propulsion 5 | 2 2 1 . . Treads . | . . . . . Leg 5 | 2 2 1 . . Wheel . | . . . . . Hover . | . . . . . Flight . | . . . . . Utility 2 | 1 1 . . . Device . | . . . . . Storage 1 | 1 . . . . Processor . | . . . . . Hackware . | . . . . . Protection 1 | . 1 . . . Artifact . | . . . . . Weapon 8 | 2 3 2 1 . Energy Gun . | . . . . . Energy Cannon 1 | . . . 1 . Ballistic Gun 7 | 2 3 2 . . Ballistic Cannon . | . . . . . Launcher . | . . . . . Special Weapon . | . . . . . Impact Weapon . | . . . . . Slashing Weapon . | . . . . . Piercing Weapon . | . . . . . Special Melee Weapon . | . . . . . Unidentified Prototypes . | . . . . . Parts Lost 1 | . 1 . . . Power . | . . . . . Propulsion . | . . . . . Utility . | . . . . . Weapon 1 | . 1 . . . Highest Loss Streak 1 | . 1 . . . To Critical Strikes . | . . . . . Average Backups 6 | . 5 8 7 8 Power 1 | . 1 1 1 1 Propulsion 1 | . 1 1 1 1 Utility 3 | . 1 4 5 6 Weapon . | . 1 1 . . Tool/Special . | . . . . . Unused Backups 6 | . 1 1 . 4 Power . | . . . . . Propulsion 1 | . . 1 . . Utility 5 | . 1 . . 4 Weapon . | . . . . . Tool/Special . | . . . . . Average Slot Usage (%) 92 | . 98 100 99 70 Engine 13 | . 14 14 14 13 Leg 28 | . 28 28 28 28 Storage 14 | . 14 14 14 14 Protection 10 | . 12 14 13 . Energy Cannon 4 | . . . 8 14 Ballistic Gun 19 | . 28 28 19 . Peak Build Rating 17 | 6 8 8 17 15 Average Rating 10 | 4 6 8 13 14 On Entrance 7 | . 6 8 8 15 Avg Prop Armor Cover (%) . | . . . . . Naked Turns . | . . . . . Heaviest Build 24 | 11 15 16 24 20 Greatest Support 20 | 20 20 20 20 20 Greatest Overweight (x) 1 | 1 . . 1 . Average Overweight (x) . | . . . . . Largest Inventory Capacity 8 | 8 8 8 8 8 Average Capacity 7 | 7 8 8 8 8 Most Carried 8 | 1 8 8 8 8 Average Carried 6 | . 5 8 7 7 Final Capacity 8 | 8 8 8 8 8 Final Carried 8 | 1 8 8 8 4 Class Distribution -------------------- 71% | Mutant 28% | Scavenger-Mutant Dominant Class ---------------- Mutant | -10/Materials Scavenger-Mutant | -10/Mines Mutant | -10/Exiles Mutant | -9/Mines Resources | -11 -10 -10 -10 -9 ----------- Run | Yrd Mat Min Exi Min Matter Collected 637 | 242 256 99 . 40 Remotely . | . . . . . Salvage Created 558 | . 330 128 . 100 Parts 38 | . 26 8 . 4 Haulers Intercepted . | . . . . . Recyclers Shooed . | . . . . . Parts Field Recycled . | . . . . . Retrieved Matter . | . . . . . Parts Self-Destructed . | . . . . . Prevented . | . . . . . Parts Restored . | . . . . . Kills | -11 -10 -10 -10 -9 ------- Run | Yrd Mat Min Exi Min Combat Hostiles Destroyed 14 | . 8 4 . 2 Guns 12 | . 8 4 . . AOE 1 | . . . . 1 Classes Destroyed 5 | . 4 . . 1 Operator 1 | . 1 . . . Watcher 1 | . 1 . . . Swarmer 4 | . 2 2 . . Grunt 9 | . 6 2 . 1 Brawler 1 | . . . . 1 Best Kill Streak 3 | . 3 2 . 2 Combat Bots Only 3 | . 3 2 . 2 Max Kills in Single Turn 1 | . 1 1 . 1 Gunslinging . | . . . . . Exploded 1 | . . . . 1 Melee . | . . . . . Uniques/NPCs Destroyed . | . . . . . Combat | -11 -10 -10 -10 -9 -------- Run | Yrd Mat Min Exi Min Hostile Shots Fired 115 | . 61 41 . 13 Missed 27 | . 13 10 . 4 Hits 88 | . 48 31 . 9 Melee 4 | . . . . 4 Projectile 84 | . 48 31 . 5 Critical Strikes 1 | . 1 . . . Damage Taken 1070 | . 522 338 . 210 Core 279 | . 112 94 . 73 Absorbed by Shields . | . . . . . Regen/Repaired (Parts) 68 | . 68 . . . Core Remaining (%) 100 | 100 . . . . Volleys Fired 79 | . 58 16 . 5 Largest 2 | . 2 2 . 1 Hottest 60 | . 40 40 . 60 Shots Fired 153 | . 116 32 . 5 Gun 148 | . 116 32 . . Cannon 5 | . . . . 5 Launcher . | . . . . . Special . | . . . . . Kinetic 148 | . 116 32 . . Thermal . | . . . . . Explosive . | . . . . . Electromagnetic 5 | . . . . 5 Robot Hit Streak 16 | . 16 14 . 5 Robot Miss Streak 6 | . 6 2 . 1 Penetration Max . | . . . . . Secondary Targets 3 | . 1 2 . . Max Gunslinging Chain 1 | . 1 1 . . Shots Hit Robots 95 | . 67 25 . 3 Core Hits 46 | . 26 10 . 10 Critical Kills . | . . . . . Critical Parts Destroyed . | . . . . . Critical Strikes . | . . . . . Melee Attacks . | . . . . . Impact . | . . . . . Slashing . | . . . . . Piercing . | . . . . . Sneak Attacks . | . . . . . Combat Hostiles . | . . . . . Follow-up Attacks . | . . . . . Damage Inflicted 1160 | . 656 242 . 262 Guns 898 | . 656 242 . . Cannons 26 | . . . . 26 Explosions 236 | . . . . 236 Melee . | . . . . . Ramming . | . . . . . Kinetic 898 | . 656 242 . . Thermal . | . . . . . Explosive . | . . . . . Electromagnetic 262 | . . . . 262 Impact . | . . . . . Slashing . | . . . . . Piercing . | . . . . . Highest Corruption 8 | . . . . 8 Average Corruption 3 | . . . . 3 Corruption Purged . | . . . . . Corruption Blocked . | . . . . . Effects 4 | . . . . 4 Message Errors 1 | . . . . 1 Matter Fused 2 | . . . . 2 Parts Rejected 1 | . . . . 1 Overload Shots . | . . . . . Overflow Damage . | . . . . . Projectiles . | . . . . . Explosions . | . . . . . Melee . | . . . . . Knockbacks . | . . . . . Impact . | . . . . . Kinetic . | . . . . . Secondary . | . . . . . Self-Inflicted Damage 20 | . . . . 20 Shots 1 | . . . . 1 Rammed . | . . . . . Targets Rammed . | . . . . . Kicked . | . . . . . Crushed . | . . . . . Highest Temperature 96 | . 79 96 . 20 Average Temperature 27 | . 23 45 . 11 Received Heat Transfer 384 | . 240 144 . . Siege Activations . | . . . . . Martial Activations . | . . . . . Shielding Activations . | . . . . . Robots Disrupted . | . . . . . Combat Hostiles . | . . . . . Robots Corrupted 1 | . . . . 1 Combat Hostiles 1 | . . . . 1 Parts Fried 1 | . . . . 1 Impact Corruptions . | . . . . . Robots Melted . | . . . . . Combat Hostiles . | . . . . . Parts Melted . | . . . . . Heat Transferred . | . . . . . Parts Sabotaged . | . . . . . Parts Stolen . | . . . . . Parts Stripped . | . . . . . Power Chain Reactions . | . . . . . Latent Energy Used 264 | . . . . 264 LE Corruption 7 | . . . . 7 Alert | -11 -10 -10 -10 -9 ------- Run | Yrd Mat Min Exi Min Maximum Alert Level . | . . . . . Low Security (%) 100 | 100 100 100 . 100 Level 1 . | . . . . . Level 2 . | . . . . . Level 3 . | . . . . . Level 4 . | . . . . . Level 5 . | . . . . . High Security . | . . . . . Max Security . | . . . . . Peak Influence 94 | . 94 50 . 81 Initial . | . . . . . Average 16 | . 24 9 . 15 Influence Increases 415 | . 234 100 . 81 Destroy 0b10 Robot/C 280 | . 160 80 . 40 Destroy 0b10 Robot/NC 10 | . 10 . . . Destroy Leader 62 | . 32 20 . 10 Successful Hack 2 | . 2 . . . Disable Machine 15 | . . . . 15 Destroy Structure 16 | . . . . 16 Lose Combat Pursuer 30 | . 30 . . . Influence Decreases 408 | . 234 100 . 74 Time Decay 398 | . 224 100 . 74 Lost Part 10 | . 10 . . . Squads Dispatched 3 | . 2 . . 1 Investigation 1 | . 1 . . . Extermination . | . . . . . Reinforcement 2 | . 1 . . 1 Assault . | . . . . . Garrison . | . . . . . Intercept . | . . . . . Searches Triggered . | . . . . . Construction Impeded 1 | . . . . 1 Haulers Reinforced . | . . . . . Active Scanning Responses . | . . . . . Cargo Convoy Interrupts . | . . . . . Stealth | -11 -10 -10 -10 -9 --------- Run | Yrd Mat Min Exi Min Distress Signals 1 | . 1 . . . Communications Jammed . | . . . . . Distress Signals . | . . . . . Times Spotted 30 | . 19 5 . 6 Peak Tracking Total 4 | . 4 3 . 2 Tactical Retreats 2 | . 2 . . . Traps | -11 -10 -10 -10 -9 ------- Run | Yrd Mat Min Exi Min Traps Triggered 1 | . 1 . . . Indirectly . | . . . . . Trap Hack Attempts . | . . . . . Triggered . | . . . . . Disarmed . | . . . . . Reprogrammed . | . . . . . Reused . | . . . . . Traps Extracted . | . . . . . Installed . | . . . . . Triggered . | . . . . . Machines | -11 -10 -10 -10 -9 ---------- Run | Yrd Mat Min Exi Min Machines Disabled 1 | . . . . 1 Max in Single Turn 1 | . . . . 1 Machines Repaired . | . . . . . Machines Dismantled . | . . . . . Machines Sabotaged . | . . . . . Overloaded Fab Kills . | . . . . . Hacking | -11 -10 -10 -10 -9 --------- Run | Yrd Mat Min Exi Min Machines Accessed 6 | . 3 . 2 1 Terminals 2 | . 2 . . . Fabricators . | . . . . . Repair Stations 1 | . 1 . . . Recycling Units . | . . . . . Scanalyzers . | . . . . . Garrison Access . | . . . . . Total Hacks 8 | . 5 . 2 1 Successful 7 | . 4 . 2 1 Failed 1 | . 1 . . . Catastrophic . | . . . . . Database Lockouts . | . . . . . Manual 2 | . 1 . 1 . Terminals 2 | . 2 . . . Fabricators . | . . . . . Repair Stations 3 | . 3 . . . Recycling Units . | . . . . . Scanalyzers . | . . . . . Garrison Access . | . . . . . Terminal Hacks 5 | . 2 . 2 1 Record 1 | . . . 1 . Open Door 1 | . . . . 1 Locate Traps 1 | . 1 . . . Hauler Manifests 1 | . 1 . . . Proto ID Catalog 1 | . . . 1 . Fabricator Hacks . | . . . . . Repair Station Hacks 2 | . 2 . . . Scan Component 1 | . 1 . . . Repair 1 | . 1 . . . Recycling Unit Hacks . | . . . . . Scanalyzer . | . . . . . Garrison Access Hacks . | . . . . . Unauthorized Hacks . | . . . . . Terminals . | . . . . . Fabricators . | . . . . . Repair Stations . | . . . . . Recycling Units . | . . . . . Scanalyzers . | . . . . . Garrison Access . | . . . . . Data Cores Recovered . | . . . . . Used . | . . . . . Hacking Detections 2 | . 2 . . . Full Trace Events . | . . . . . Feedback Events . | . . . . . Feedback Blocked . | . . . . . Robot Schematics Acquired . | . . . . . Robots Built . | . . . . . Authchips . | . . . . . Time . | . . . . . Total Robot Build Rating . | . . . . . Part Schematics Acquired . | . . . . . Parts Built . | . . . . . Authchips . | . . . . . Time . | . . . . . Total Part Build Rating . | . . . . . Part Studies Acquired . | . . . . . Parts Repaired 1 | . 1 . . . Time 26 | . 26 . . . Parts Recycled . | . . . . . Recycled Matter . | . . . . . Retrieved Matter . | . . . . . Retrieved Components . | . . . . . Parts Scanalyzed . | . . . . . Part Schematics Acquired . | . . . . . Parts Damaged . | . . . . . Bothacking | -11 -10 -10 -10 -9 ------------ Run | Yrd Mat Min Exi Min Used RIF Installer . | . . . . . Robots Hacked . | . . . . . Non-combat . | . . . . . Combat . | . . . . . Robot Hacks Applied . | . . . . . Relay Couplers Released . | . . . . . Fabnet Peak Effective % . | . . . . . Robots Rewired . | . . . . . Allies Hacked . | . . . . . Hacks Repelled . | . . . . . Allies | -11 -10 -10 -10 -9 -------- Run | Yrd Mat Min Exi Min Total Allies . | . . . . . Largest Group . | . . . . . Highest-Rated Group . | . . . . . Highest-Rated Ally . | . . . . . Total Orders . | . . . . . Ally Attacks . | . . . . . Total Damage . | . . . . . Kills . | . . . . . Allies Corrupted . | . . . . . Allies Melted . | . . . . . Intel | -11 -10 -10 -10 -9 ------- Run | Yrd Mat Min Exi Min Active Infowar (turns) . | . . . . . Robot Analysis Total . | . . . . . Derelict Logs Recovered 2 | . . 2 . . Drone Launches . | . . . . . Drone Recoveries . | . . . . . Exploration | -11 -10 -10 -10 -9 ------------- Run | Yrd Mat Min Exi Min Turns Passed 2388 | 65 826 567 380 550 Spaces Moved 1638 | 45 501 428 244 420 Core 5 | 5 . . . . Treads . | . . . . . Legs 1633 | 40 501 428 244 420 Wheels . | . . . . . Hover . | . . . . . Flight . | . . . . . Fastest Speed 50 | 50 120 120 120 120 Average Speed 124 | 124 120 120 152 120 Slowest Speed 190 | 190 120 120 190 120 Overloaded Moves . | . . . . . Propulsion Burnouts . | . . . . . Robots Hopped . | . . . . . Potential Cave-ins . | . . . . . Cave-ins Triggered . | . . . . . Exploration Rate (%) 61 | 4 92 82 61 67 Regions Visited 4 Branch Regions 3 Pre-discovered Areas 1 | . . 1 . . Known Exits Taken . | . . . . . Unknown Exits Taken 4 | 1 1 1 1 . Scrap Searched 3 | . . 2 . 1 Spaces Dug . | . . . . . Terrain Destroyed 19 | . . . . 19 Melee . | . . . . . Projectile . | . . . . . AOE 19 | . . . . 19 Terrain Rammed . | . . . . . Walls Destroyed . | . . . . . Machines Disabled . | . . . . . Actions | -11 -10 -10 -10 -9 --------- Run | Yrd Mat Min Exi Min Total 1850 | 51 626 457 253 463 Wait 80 | . 43 4 1 32 Move 1634 | 44 500 427 243 420 Hop . | . . . . . Pick Up 13 | 1 11 1 . . Fast Attach 12 | 6 2 1 2 1 Attach 1 | . 1 . . . Detach 1 | . . . 1 . Swap 11 | . 6 3 2 . Drop 19 | . 5 5 4 5 Fire 79 | . 58 16 . 5 Melee . | . . . . . Ram . | . . . . . Kick . | . . . . . Crush . | . . . . . Escape Stasis . | . . . . . Rewire . | . . . . . Trap . | . . . . . Miscellaneous . | . . . . . Route ------- -11/Scrapyard -10/Materials (discovered 5 exits: [*Mat x3] / [*Min x2]) -10/Mines (discovered 2 exits: [*Mat] / *Exi) -10/Exiles -9/Mines History --------- Turn | Location | Event 4 | -11/Scrapyard | Discovered new exit (range 15) 66 | -11/Scrapyard | Entered Materials 69 | -10/Materials | Discovered new exit (range 14) 244 | -10/Materials | Discovered new exit (range 16) 301 | -10/Materials | Build established: Mutant 420 | -10/Materials | Discovered new exit (range 3) 725 | -10/Materials | Repaired Lgt. Armor Plating 765 | -10/Materials | Discovered new exit (range 14) 850 | -10/Materials | Discovered new exit (range 16) 892 | -10/Materials | Entered Mines 894 | -10/Mines | Core integrity fell below 50% 962 | -10/Mines | Discovered new exit (range 16) 1136 | -10/Mines | Core integrity fell below 20% 1193 | -10/Mines | Learned location of Zion (-7) 1224 | -10/Mines | Build established: Scavenger-Mutant 1242 | -10/Mines | Learned Materials terminal intel 1249 | -10/Mines | Found a damaged Exp. Sensor Array with a note attached 1252 | -10/Mines | Found Prototype Device 1455 | -10/Mines | Deemed a non-threat by the Exiles lab entrance 1455 | -10/Mines | Discovered new exit (range 5) 1459 | -10/Mines | Entered Exiles 1488 | -10/Exiles | Met 8R-AWN 1509 | -10/Exiles | Met EX-HEX 1543 | -10/Exiles | Met EX-BIN 1561 | -10/Exiles | Aligned with FarCom system 1563 | -10/Exiles | Given EX-Vault access code 1591 | -10/Exiles | Opened EX-Vault 1603 | -10/Exiles | Found Latent Energy Streamer 1651 | -10/Exiles | Warned to stay clear of 0b10 Research branches 1673 | -10/Exiles | Exiles lab attacked by MAIN.C 1829 | -10/Exiles | Discovered new exit (range 10) 1839 | -10/Exiles | Left Exiles lab with Latent Energy Streamer 1839 | -10/Exiles | Entered Mines 1856 | -9/Mines | Met a Derelict who couldn't figure out how to use a Trap Extractor 1899 | -9/Mines | Build established: Mutant 2035 | -9/Mines | YI-UF0 nonchalantly dropped a Grenade Launcher on the ground 2072 | -9/Mines | Assembled infested the area 2077 | -9/Mines | Assisted by a Guerilla fighting off Assembled 2389 | -9/Mines | Destroyed by as-54461 with Assembled Maul Last Messages --------------- U-05 Engineer lays Concrete. ALERT: Construction progress impeded, dispatching reinforcements to local area. as-47051 destroyed. QF Dropped Visual Processing Unit. Dropped Aluminum Leg. Map ----- +----------------------------------------------------+ | ?????????????????????????????????????????????????? | | ???????????????????????????? ##??????????????????? | | ??????????????????????????? ##?????????????????? | | ??????????????????????????? #?????????????????? | | ??????????????????????????? ??? ????????????? | | ??????????????????????????? ?# ???????????? | | ###???????????????????????? ? # ??????????? | | #????????????????????????%!#? # ??????????? | | #????????????????????????! # = * ??????????? | | ##???????????????????#### ##% ?????????? | | ##################### # ! ??????????? | | =%!/! ???????????? | | /%] % %* ###????????????????? | | ##################### =%## #????????????????? | | #???????????????##### #?????????????????? | | ##??????????????## ## # #????????????????? | | ##???????????????# % ] #####???????????????? | | ###############??# #???????????????? | | ##?## ### #???????????????? | | ##?###### ##?# #???????????????? | | ############ ##?????# #??# #?????????###???? | | ???????????## ##????# #??# ######???## ##?? | | ????????????## ##???# r##?# #???# #?? | | ?????????????# ##### r### #### #???# ##? | | ?????????????## ##=a ## #??# ###??# ## | | ??????????????## =@a ## #??# #??#### | | ???????????????#### ! ## #??### #?????## | | ??????????????????## ## #??### #??##### | | ????????#####??????# # #?## ##?# | | ???????## ##?????# ### ### ### | | ???????# ##????# # ## ## ### | | ?#####??# ###??## # | | ## #### ##??### | | # ## ### #????## ##### # | | ##?## ##?????## ##???# # | | ##???# #???????# ##????# # | | #????# #??????## #?????# | | #????# #???#### #????# # | | # """ ##???# #??## #???# # | | ## """ #???# #### ######## #???# # | | ?# """ ###?# ##??????## ###### # | | ## ### ##### ##????????###### # | | # ## ## #???## ###??????????????# ###### | | ####### #####????#####????????????????# #????? | | #?????# ##########???????############## ####?? | | #?????# ## #???????# #?? | | # ##?????# ## ##???#### #?? | | ####?# ## ## / "#??##""## #?? | | ??????# %! "#??#"!*!# #?? | | ??????# ###" *!% "#??#"]!^ #?? | +----------------------------------------------------+ Best States ------------- Heat Dissipation 25 Energy Generation 10 Energy Capacity 250 Matter Stores 300 Matter Capacity 300 Sight Range 16 Terrain Scan Density 10 Armor Coverage 150 Evasion (%) 55 Item Schematics ----------------- None Robot Schematics ------------------ None Fabricated ------------ Nothing Repaired ---------- Lgt. Armor Plating | 24% | -10/Materials Studied --------- None Alien Tech Used ----------------- None Achievements -------------- None Challenges ------------ None Game ------ Seed FieldthrustSmartbombFirepult Manual? 0 Play Time 00:22:09 Cumulative 30.5 hours Start 2025.12.02 @ 01:35:20 End 2025.12.02 @ 01:54:53 Sessions 1 Manual Loads 0 Difficulty Rogue Special Mode None Game No. 55 Rogue 55 Adventurer 0 Explorer 0 Win Type - Total 0 Types 0/0/0/0/0/0/0/0/0/0 Lore% 28 Gallery% 26 Achievement% 22 Wizard Run 0 Options --------- Layout 0 ASCII 0 Keyboard 0 Movement Numpad Keybinds 0 Fullscreen 1 Font 18/SmallcapsGlow Map View 76x50 Zoom Use 0% Tactical HUD 0 Map Filters NONE Filters NONE Steam 1 RUN: 23d8117b-b7e3-48f0-b87a-1d24a88aa4d5